Cogmind - Beta 11.1 @@@ ROGUE MODE // 2022.04.30 @ 18:19:11 Player: Olga Result: Self-destructed Performance ------------- Evolutions (1) 500 Regions Visited (2) 400 Robots Destroyed (0) 0 Value Destroyed (0) 0 Prototype IDs (0) 0 Alien Tech Used (0) 0 Bonus (200) 200 TOTAL SCORE: 1100 Bonus ------- Pacifist 200 Cogmind --------- Core Integrity 173/400 Matter 238/300 Energy 152/250 System Corruption 0% Temperature Cool (0) Movement Core (150) Ox2 Location -9/Materials Parts ------- > --- POWER (1) -------- Ion Engine > --- PROPULSION (2) --- (None) > --- UTILITY (4) ------ Terrain Scanner Seismic Detector > --- WEAPON (2) ------- (None) > --- INVENTORY (5) ---- Small Storage Unit Terrain Scanner Light Armor Plating Shotgun Maul Peak State ------------ > --- POWER ------------ Ion Engine > --- PROPULSION ------- Improved Hover Unit > --- UTILITY ---------- Terrain Scanner Terrain Scanner Seismic Detector > --- WEAPON ----------- (None) > --- INVENTORY -------- Small Storage Unit Light Armor Plating Shotgun Maul [Rating: 6] Favorites ----------- Power Ion Engine Engine Ion Engine Propulsion Improved Hover Unit Hover Unit Improved Hover Unit Utility Terrain Scanner Device Terrain Scanner Weapon Maul Ballistic Gun Assault Rifle Impact Weapon Maul Special Melee Weapon Datajack Build | -11 -10 -9 ------- Run | Scr Mat Mat Slots Evolved 2 | . . 2 Power . | . . . Propulsion . | . . . Utility 2 | . . 2 Weapon . | . . . Parts Attached 8 | 1 1 6 Power 1 | . . 1 Engine 1 | . . 1 Core . | . . . Reactor . | . . . Propulsion 1 | . . 1 Treads . | . . . Leg . | . . . Wheel . | . . . Hover 1 | . . 1 Flight . | . . . Utility 3 | . . 3 Device 3 | . . 3 Storage . | . . . Processor . | . . . Hackware . | . . . Protection . | . . . Artifact . | . . . Weapon 3 | 1 1 1 Energy Gun . | . . . Energy Cannon . | . . . Ballistic Gun 1 | 1 . . Ballistic Cannon . | . . . Launcher . | . . . Special Weapon . | . . . Impact Weapon 1 | . 1 . Slashing Weapon . | . . . Piercing Weapon . | . . . Special Melee Weapon 1 | . . 1 Unidentified Prototypes . | . . . Parts Lost 2 | . . 2 Power . | . . . Propulsion 1 | . . 1 Utility . | . . . Weapon 1 | . . 1 Highest Loss Streak 1 | . . 1 To Critical Strikes . | . . . Average Slot Usage (%) 19 | . 14 20 Hover 1 | . . 1 Device 10 | . . 13 Impact Weapon 5 | . 14 3 Special Melee Weapon 1 | . . 1 Naked Turns . | . . . Heaviest Build 7 | 2 3 7 Greatest Support 7 | 3 3 7 Greatest Overweight (x) 2 | . . 2 Average Overweight (x) . | . . . Largest Inventory Capacity 5 | 5 5 5 Average Capacity 5 | 5 5 5 Most Carried 5 | 5 5 5 Average Carried 4 | 4 4 4 Final Capacity 5 | 5 5 5 Final Carried 5 | 5 5 5 Class Distribution -------------------- 100% | Mutant Dominant Class ---------------- Mutant | -10/Materials Mutant | -9/Materials Resources | -11 -10 -9 ----------- Run | Scr Mat Mat Matter Collected 200 | 200 . . Remotely . | . . . Salvage Created . | . . . Parts . | . . . Haulers Intercepted . | . . . Recyclers Shooed . | . . . Parts Field Recycled . | . . . Retrieved Matter . | . . . Parts Self-Destructed . | . . . Prevented . | . . . Kills | -11 -10 -9 ------- Run | Scr Mat Mat Combat Hostiles Destroyed . | . . . Classes Destroyed . | . . . Best Kill Streak . | . . . Combat Bots Only . | . . . Max Kills in Single Turn . | . . . Gunslinging . | . . . Exploded . | . . . Melee . | . . . Uniques/NPCs Destroyed . | . . . Combat | -11 -10 -9 -------- Run | Scr Mat Mat Damage Taken 312 | . . 312 Core 227 | . . 227 Absorbed by Shields . | . . . Core Remaining (%) 100 | 100 100 . Volleys Fired . | . . . Largest . | . . . Hottest . | . . . Shots Fired . | . . . Gun . | . . . Cannon . | . . . Launcher . | . . . Special . | . . . Kinetic . | . . . Thermal . | . . . Explosive . | . . . Electromagnetic . | . . . Robot Hit Streak . | . . . Robot Miss Streak . | . . . Penetration Max . | . . . Secondary Targets . | . . . Shots Hit Robots 1 | . . 1 Core Hits . | . . . Critical Kills . | . . . Critical Parts Destroyed . | . . . Critical Strikes . | . . . Melee Attacks 1 | . . 1 Impact . | . . . Slashing . | . . . Piercing . | . . . Sneak Attacks 1 | . . 1 Combat Hostiles . | . . . Follow-up Attacks . | . . . Damage Inflicted 4 | . . 4 Guns . | . . . Cannons . | . . . Explosions . | . . . Melee . | . . . Ramming 4 | . . 4 Kinetic . | . . . Thermal . | . . . Explosive . | . . . Electromagnetic . | . . . Impact . | . . . Slashing . | . . . Piercing . | . . . Highest Corruption . | . . . Average Corruption . | . . . Corruption Purged . | . . . Corruption Blocked . | . . . Overload Shots . | . . . Overflow Damage . | . . . Projectiles . | . . . Explosions . | . . . Melee . | . . . Knockbacks . | . . . Impact . | . . . Kinetic . | . . . Secondary . | . . . Self-Inflicted Damage 2 | . . 2 Shots . | . . . Rammed 2 | . . 2 Targets Rammed 2 | . . 2 Kicked . | . . . Crushed . | . . . Highest Temperature . | . . . Average Temperature . | . . . Received Heat Transfer 120 | . . 120 Siege Activations . | . . . Robots Corrupted . | . . . Combat Hostiles . | . . . Parts Fried . | . . . Impact Corruptions . | . . . Robots Melted . | . . . Combat Hostiles . | . . . Parts Melted . | . . . Heat Transferred . | . . . Parts Sabotaged . | . . . Parts Stolen . | . . . Parts Stripped . | . . . Power Chain Reactions . | . . . Missiles Intercepted . | . . . Alert | -11 -10 -9 ------- Run | Scr Mat Mat Peak Influence 230 | . . 230 Initial . | . . . Average 67 | . . 87 Maximum Alert Level 1 | . . 1 Low Security (%) 91 | 100 100 89 Level 1 8 | . . 10 Level 2 . | . . . Level 3 . | . . . Level 4 . | . . . Level 5 . | . . . High Security . | . . . Max Security . | . . . Squads Dispatched 5 | . . 5 Investigation 2 | . . 2 Extermination . | . . . Reinforcement 3 | . . 3 Assault . | . . . Garrison . | . . . Intercept . | . . . Searches Triggered . | . . . Construction Impeded . | . . . Haulers Reinforced . | . . . Active Scanning Responses . | . . . Cargo Convoy Interrupts . | . . . Stealth | -11 -10 -9 --------- Run | Scr Mat Mat Distress Signals 5 | . . 5 Communications Jammed . | . . . Distress Signals . | . . . Times Spotted 22 | . . 22 Peak Tracking Total 17 | . . 17 Tactical Retreats 3 | . . 3 Traps | -11 -10 -9 ------- Run | Scr Mat Mat Traps Triggered 1 | . . 1 Indirectly . | . . . Trap Hack Attempts . | . . . Triggered . | . . . Disarmed . | . . . Reprogrammed . | . . . Reused . | . . . Traps Extracted . | . . . Installed . | . . . Triggered . | . . . Machines | -11 -10 -9 ---------- Run | Scr Mat Mat Machines Disabled . | . . . Max in Single Turn . | . . . Machines Sabotaged . | . . . Garrisons Compromised . | . . . Overloaded Fab Kills . | . . . Hacking | -11 -10 -9 --------- Run | Scr Mat Mat Machines Accessed 3 | . . 3 Terminals 3 | . . 3 Fabricators . | . . . Repair Stations . | . . . Recycling Units . | . . . Scanalyzers . | . . . Garrison Access . | . . . Total Hacks 8 | . . 8 Successful . | . . . Failed 8 | . . 8 Catastrophic 3 | . . 3 Database Lockouts . | . . . Manual 8 | . . 8 Terminals 8 | . . 8 Fabricators . | . . . Repair Stations . | . . . Recycling Units . | . . . Scanalyzers . | . . . Garrison Access . | . . . Terminal Hacks . | . . . Fabricator Hacks . | . . . Repair Station Hacks . | . . . Recycling Unit Hacks . | . . . Scanalyzer . | . . . Garrison Access Hacks . | . . . Unauthorized Hacks . | . . . Terminals . | . . . Fabricators . | . . . Repair Stations . | . . . Recycling Units . | . . . Scanalyzers . | . . . Garrison Access . | . . . Data Cores Recovered . | . . . Used . | . . . Hacking Detections 3 | . . 3 Full Trace Events 1 | . . 1 Feedback Events . | . . . Feedback Blocked . | . . . Robot Schematics Acquired . | . . . Robots Built . | . . . Authchips . | . . . Time . | . . . Total Robot Build Rating . | . . . Part Schematics Acquired . | . . . Parts Built . | . . . Authchips . | . . . Time . | . . . Total Part Build Rating . | . . . Parts Repaired . | . . . Time . | . . . Parts Recycled . | . . . Recycled Matter . | . . . Retrieved Matter . | . . . Retrieved Components . | . . . Parts Scanalyzed . | . . . Part Schematics Acquired . | . . . Parts Damaged . | . . . Bothacking | -11 -10 -9 ------------ Run | Scr Mat Mat Used RIF Installer . | . . . Robots Hacked . | . . . Non-combat . | . . . Combat . | . . . Robot Hacks Applied . | . . . Relay Couplers Released . | . . . Fabnet Peak Effective % . | . . . Robots Rewired . | . . . Allies Hacked . | . . . Hacks Repelled . | . . . Allies | -11 -10 -9 -------- Run | Scr Mat Mat Total Allies . | . . . Largest Group . | . . . Highest-Rated Group . | . . . Highest-Rated Ally . | . . . Total Orders . | . . . Ally Attacks . | . . . Total Damage . | . . . Kills . | . . . Allies Corrupted . | . . . Allies Melted . | . . . Intel | -11 -10 -9 ------- Run | Scr Mat Mat Robot Analysis Total . | . . . Derelict Logs Recovered . | . . . Drone Launches . | . . . Drone Recoveries . | . . . Exploration | -11 -10 -9 ------------- Run | Scr Mat Mat Turns Passed 198 | 2 43 153 Spaces Moved 341 | 1 76 264 Core 316 | 1 76 239 Treads . | . . . Legs . | . . . Wheels . | . . . Hover 25 | . . 25 Flight . | . . . Fastest Speed 50 | 50 50 50 Average Speed 51 | 50 50 51 Slowest Speed 150 | 50 50 150 Overloaded Moves . | . . . Propulsion Burnouts . | . . . Robots Hopped . | . . . Cave-ins Triggered . | . . . Exploration Rate (%) 22 | 2 27 39 Regions Visited 2 Branch Regions . Pre-discovered Areas . | . . . Known Exits Taken . | . . . Unknown Exits Taken 2 | 1 1 . Scrap Searched . | . . . Spaces Dug . | . . . Terrain Destroyed . | . . . Melee . | . . . Projectile . | . . . AOE . | . . . Terrain Rammed . | . . . Walls Destroyed . | . . . Machines Disabled . | . . . Actions | -11 -10 -9 --------- Run | Scr Mat Mat Total 363 | 2 81 280 Wait 1 | . . 1 Move 339 | . 75 264 Hop . | . . . Pick Up 5 | 1 2 2 Fast Attach 5 | . 1 4 Attach 3 | 1 . 2 Detach 2 | . . 2 Swap . | . . . Drop 5 | . 3 2 Fire . | . . . Melee 1 | . . 1 Ram 2 | . . 2 Kick . | . . . Crush . | . . . Escape Stasis . | . . . Rewire . | . . . Trap . | . . . Miscellaneous . | . . . Route ------- -11/Scrapyard -10/Materials (discovered 2 exits: *Mat / [*Min]) -9/Materials History --------- Turn | Location | Event 1 | -11/Scrapyard | Released all parts (6) 3 | -11/Scrapyard | Discovered new exit (range 0) 3 | -11/Scrapyard | Entered Materials 20 | -10/Materials | Discovered new exit (range 15) 40 | -10/Materials | Discovered new exit (range 13) 46 | -10/Materials | Entered another Materials area 46 | -9/Materials | Evolved 2 slots: Utility x2 197 | -9/Materials | Core integrity fell below 50% 199 | -9/Materials | Self-destructed Last Messages --------------- 00112_ Slammed into A-02 Transporter. 00115_ Datajack destroyed. 00125_ O-16 Technician: "IFF HANDSHAKE FAILED. SECURING TERMINAL." 00126_ ALERT: Hostiles spotted, dispatching reinforcements to Terminal M003. 00138_ U-05 Engineer lays Concrete. 00143_ W-16 Scout sends out distress signal. 00144_ K-01 Serf collects debris. 00169_ O-16 Technician: "IFF HANDSHAKE FAILED. SECURING TERMINAL." 00169_ Critical hit (Burn: +37). 00170_ Slammed into O-16 Technician. 00176_ O-16 Technician uses terminal to summon reinforcements. 00176_ ALERT: Hostiles spotted, dispatching reinforcements to Terminal M001. 00176_ O-16 Technician locks terminal. 00177_ Acquired Imp. Hover Unit. 00182_ Acquired Seismic Detector. 00193_ ALERT: Hostiles spotted, dispatching reinforcements to Terminal M002. 00196_ Imp. Hover Unit destroyed. Map ----- +----------------------------------------------------+ | ??????????# # ##### #??????? ????????????? | | ??????????#""" # #???# #??????? ??????? ????? | | ??????????#""" ?# #???# #??????? #????????????? | | ??????????#""" ?# #???# #?????#? #????????????? | | ??????????# ??# #???# #??##### #????????????? | | ??????????#####??# #???# #### #????????????? | | ?????????????????# #???# #?? ?????????? | | ?????????????????# #???# #????????????? | | ?????????????????# #???# # ???????????? | | ????????????#????# #???######## #????????????? | | ?????????????????# #??????????## ######??#####?? | | ??????????######## #?????#?##??# # #??#"""#?? | | ??????????# T # #???????????# # ####"T"### | | ??????????# # ##??????????# + # | | ??????????# + #########??## # # !! | | ??????????# """ # ## """ """ ## # # !! " | | ??????????# """ # ## """ """ ## # + " | | ??????????# """ # ## """ """ ## # # " | | ???????#??######## ## ## # # " | | ?????????????????# ## ## # # " | | ?????????????????# ## ## ###### | | ?????????????????# ## ] ??# ###### | | ?????????????????# #?? ????# | | ?????????????????# #####+####### ####+###### | | ?????????????????# Y aY # #? | | ?????????????????# @ a # """ ## | | ?????????????????# Y # """ + | | ?????????????????# g###+######### # """ ## | | ???????? ????????# #???????????# # ## | | ?????????????????# #???????????# # # | | ?????????????????# #???????????# # !! # | | ????????????????? ???????????# # !! # | | ???????????????? ???????????# # # | | ??????????????? ???????????# ##### #### | | ?????????????? #??????????# #??####??# | | ?????????????#### #?? ???????# #????#???## | | ????????????????#######??????#####+### ##???????# | | ?????????????????????????????# # ######### | | ?????????????????????????????# """ + | | ?????????????????????????????# """ # ########## | | ???????????????????????????#?# """ ## ##???????? | | ?????????????????????????????# ## #????????? | | ?????????????????????????????# ] ## #?????????# | | ?????????????????????????????#########+#####?????? | | ?????????????????????????????????# T #?????? | | ?????????????????????????????????# #?????? | | ?????????????????????????????????# ! #?????? | | ?????????????????????????????????# #?????? | | ?????????????????????????????????###########?????? | | | +----------------------------------------------------+ Best States ------------- Heat Dissipation 28 Energy Generation 10 Energy Capacity 250 Matter Stores 280 Matter Capacity 300 Sight Range 16 Terrain Scan Range 14 Terrain Scan Density 10 Evasion (%) 53 Item Schematics ----------------- None Robot Schematics ------------------ None Fabricated ------------ Nothing Alien Tech Used ----------------- None Achievements -------------- None Challenges ------------ None Game ------ Seed GrapheneTacticalDerivative Manual? 0 Play Time 00:07:18 Cumulative 129.2 hours Start 2022.04.30 @ 18:14:58 End 2022.04.30 @ 18:19:11 Sessions 1 Manual Loads 0 Difficulty Rogue Special Mode None Game No. 168 Rogue 167 Adventurer 0 Explorer 1 Win Type - Total 4 Types 4/0/0/0/0/0/0/0/0 Lore% 59 Gallery% 59 Achievement% 49 Wizard Run 0 Options --------- ASCII 1 Keyboard 0 Movement Vi Keybinds 0 Fullscreen 1 Font 18/SmallcapsGlow Map View 76x50 Tactical HUD 1 Map Filters NONE Filters NONE Steam 1 RUN: c5cbbf57-1b13-4ea0-9474-c8c7ca514675